bitfinex/quotes_ETHUSD_20240921
["timestamp","ask_amount","ask_price","bid_price","bid_amount"]
[1726907486935,0.3618415,2554.5,2554.4,1.5]
[1726907487133,1.33110225,2554.6,2554.4,1.83186442]
[1726907487445,1.33110225,2554.6,2554.4,1.5]
[1726907487645,1.33110225,2554.6,2554.4,1.83186442]
[1726907487874,1.33110225,2554.6,2554.4,1.5]
[1726907488036,3.58964608,2554.6,2554.4,1.83186442]
[1726907488238,3.58964608,2554.6,2554.4,1.5]
[1726907488438,2.3564191,2554.6,2554.4,1.83186442]
[1726907488738,2.3564191,2554.6,2554.4,1.5]
[1726907488936,2.3564191,2554.6,2554.4,1.83186442]
[1726907489239,2.3564191,2554.6,2554.4,1.5]
[1726907490232,2.3564191,2554.6,2554.4,1.83181452]
[1726907490431,2.3564191,2554.6,2554.4,1.5]
[1726907490667,1.83877344,2554.5,2554.4,1.83181452]
[1726907490874,20.2905,2554.7,2554.4,1.5]
[1726907491048,20.2905,2554.7,2554.4,1.83181452]
[1726907491248,20.2905,2554.7,2554.4,1.5]
[1726907491572,20.2905,2554.7,2554.4,1.83181452]
[1726907491978,20.2905,2554.7,2554.4,1.5]
[1726907492177,2.05889904,2554.6,2554.4,1.83181452]
[1726907492346,2.15677394,2554.6,2554.4,1.5]
[1726907492550,2.15677394,2554.6,2554.4,1.83181452]
[1726907492772,2.15677394,2554.6,2554.4,1.5]
[1726907492978,2.15677394,2554.6,2554.4,1.83181452]
[1726907493449,2.15677394,2554.6,2554.4,1.5]
[1726907493649,2.15677394,2554.6,2554.4,1.83181452]
[1726907493951,2.15677394,2554.6,2554.4,1.5]
[1726907494147,2.15677394,2554.6,2554.4,1.83181452]
[1726907494351,2.15677394,2554.6,2554.4,1.5]
[1726907505882,2.15677394,2554.6,2554.4,36.5]
[1726907506059,2.05889904,2554.6,2554.4,36.5]
[1726907506812,2.05889904,2554.6,2554.4,35.0]
[1726907507280,20.2905,2554.7,2554.4,35.0]
[1726907507707,3.54370792,2554.6,2554.4,35.0]
[1726907507893,2.3169335,2554.5,2554.4,35.0]
[1726907508717,3.54370792,2554.5,2554.4,35.0]
[1726907509066,3.54370792,2554.5,2554.0,2.4033]
[1726907509304,3.13500662,2554.4,2554.0,2.64363]
[1726907509464,0.9267734,2554.3,2554.0,2.64363]
[1726907509667,0.81807312,2554.4,2554.1,35.0]
[1726907509912,0.92716714,2554.3,2554.1,35.0]
[1726907510081,0.81807312,2554.4,2554.1,35.0]
[1726907510410,0.9271319,2554.3,2554.1,35.0]
[1726907510595,0.81807312,2554.3,2554.1,35.0]
[1726907516912,0.92772184,2554.2,2554.1,35.0]
[1726907517426,0.81807312,2554.3,2554.1,35.0]
[1726907517599,0.9277494,2554.2,2554.1,35.0]
[1726907517801,0.81807312,2554.3,2554.1,35.0]
[1726907519541,0.9279915,2554.2,2554.1,35.0]
[1726907520826,0.9276442,2554.2,2554.1,35.0]
[1726907524830,0.92772697,2554.2,2554.1,35.0]
[1726907526136,3.33072697,2554.2,2554.1,35.0]
[1726907526296,6.57884507,2554.2,2553.7,2.3336]
[1726907526496,0.81847012,2554.0,2553.7,2.3336]
[1726907526797,3.13781551,2553.9,2553.8,37.3336]
[1726907526999,0.92772697,2553.9,2553.8,37.3336]
[1726907527333,0.81847012,2554.0,2553.6,2.3336]
[1726907527627,0.81847012,2554.0,2553.5,0.3]
[1726907527628,0.81847012,2553.8,2553.5,0.3]
[1726907527828,0.92714622,2553.7,2553.5,0.3]
[1726907528028,0.81847012,2553.8,2553.5,0.73557403]
[1726907528392,0.81847012,2553.9,2553.5,2.45771429]
[1726907528729,0.81847012,2554.0,2553.8,2.3336]
[1726907529026,2.31672072,2553.9,2553.8,2.3336]
[1726907529424,0.92668639,2553.9,2553.8,2.3336]
[1726907530522,0.81847012,2554.0,2553.8,2.3336]
[1726907530930,0.92659223,2553.9,2553.8,2.3336]
[1726907531128,0.81847012,2554.0,2553.8,2.3336]
[1726907531338,0.81847012,2554.1,2553.8,2.3336]
[1726907531549,3.13479094,2554.0,2553.8,2.3336]
[1726907531847,0.81847012,2554.0,2553.8,2.3336]
[1726907532044,0.81847012,2554.0,2553.8,37.3336]
[1726907533014,0.81847012,2554.1,2553.8,37.3336]
[1726907533256,0.92635225,2554.0,2553.8,37.3336]
[1726907533561,0.81847012,2554.1,2553.8,37.3336]
[1726907533744,2.31568498,2554.0,2553.8,37.3336]
[1726907533910,0.81847012,2554.1,2553.8,37.3336]
[1726907534115,2.3154447,2554.0,2553.8,37.3336]
[1726907534345,0.81847012,2554.0,2553.8,37.3336]
[1726907534821,0.81847012,2554.1,2553.8,37.3336]
[1726907535032,2.3163995,2554.0,2553.8,2.3336]
[1726907535241,0.81847012,2554.0,2553.8,2.3336]
[1726907535545,0.81847012,2554.1,2553.8,37.3336]
[1726907535746,0.92649404,2554.0,2553.8,37.3336]
[1726907535914,0.81847012,2554.1,2553.8,37.3336]
[1726907536121,0.92657894,2554.0,2553.8,37.3336]
[1726907536444,0.81847012,2554.1,2553.8,37.3336]
[1726907536675,2.31671277,2554.0,2553.8,37.3336]
[1726907536878,0.81847012,2554.1,2553.8,37.3336]
[1726907537181,0.92687307,2554.0,2553.8,37.3336]
[1726907537338,0.81847012,2554.1,2553.8,37.3336]
[1726907537537,0.92681092,2554.0,2553.8,37.3336]
[1726907537762,0.81847012,2554.1,2553.8,37.3336]
[1726907537964,0.92679665,2554.0,2553.8,37.3336]
[1726907538164,0.81847012,2554.1,2553.8,37.3336]
[1726907538347,0.92669557,2554.0,2553.8,37.3336]
[1726907538564,0.81847012,2554.1,2553.8,2.3336]
[1726907538764,0.92669739,2554.0,2553.8,2.3336]
[1726907538965,3.15366037,2554.1,2553.8,37.3336]
[1726907539147,0.92669748,2554.0,2553.8,37.3336]
[1726907539342,3.15366037,2554.1,2553.8,37.3336]
[1726907539343,0.81847012,2554.1,2553.8,37.3336]
[1726907540415,0.92643985,2554.0,2553.8,37.3336]
[1726907540587,0.81847012,2554.1,2553.8,37.3336]
[1726907540879,0.9264713,2554.0,2553.8,37.3336]
[1726907541081,0.81847012,2554.1,2553.8,37.3336]
[1726907542138,0.92644498,2554.0,2553.8,2.3336]
[1726907542339,0.91635919,2554.1,2553.8,2.3336]
[1726907542538,0.92642438,2554.0,2553.8,37.3336]
[1726907542783,0.91635919,2554.1,2553.8,37.3336]
[1726907543075,0.92644598,2554.0,2553.8,37.3336]
[1726907543373,0.91635919,2554.1,2553.8,37.3336]
[1726907544091,0.81847012,2554.1,2553.8,37.3336]
[1726907544308,0.81847012,2554.2,2553.8,37.3336]
[1726907544612,0.92640229,2554.1,2553.8,37.3336]
[1726907544904,0.81847012,2554.2,2553.8,37.3336]
[1726907545073,0.92640173,2554.1,2553.8,37.3336]
[1726907545276,0.81847012,2554.2,2553.8,37.3336]
[1726907545462,3.13449644,2554.1,2553.8,37.3336]
[1726907545805,0.81847012,2554.1,2553.8,2.3336]
[1726907546314,0.81847012,2554.1,2553.9,35.0]
[1726907546604,0.81847012,2554.1,2553.8,2.3336]
[1726907546960,0.81847012,2554.1,2553.8,37.3336]
[1726907548605,0.81847012,2554.2,2553.8,37.3336]
[1726907548795,3.13489952,2554.1,2553.8,37.3336]
[1726907548963,0.81847012,2554.1,2553.8,37.3336]
[1726907549764,0.92652934,2554.0,2553.8,2.3336]
[1726907549965,0.81847012,2554.1,2553.8,2.3336]
[1726907550197,1.03287606,2554.1,2553.8,2.3336]
[1726907550440,0.81847012,2554.1,2553.8,2.3336]
[1726907550698,0.92653488,2554.0,2553.8,2.3336]
[1726907550916,0.81847012,2554.1,2553.8,2.3336]
[1726907551196,0.9265775,2554.0,2553.8,2.3336]
[1726907551407,0.81847012,2554.1,2553.8,2.3336]
[1726907551562,0.81847012,2554.1,2553.6,35.0]
[1726907551563,2.3907,2553.9,2553.6,35.0]
[1726907551766,3.20917012,2553.9,2553.5,0.3]
[1726907552891,0.92648884,2553.8,2553.5,0.3]
[1726907553076,3.20917012,2553.9,2553.5,0.3]
[1726907554002,3.20917012,2553.9,2553.6,35.0]
[1726907554909,2.3907,2553.9,2553.8,3.91573]
[1726907555079,3.3168712,2553.9,2553.8,3.91573]
[1726907555266,5.52473188,2553.9,2553.8,3.91573]
[1726907555467,4.70626176,2553.9,2553.8,3.91573]
[1726907555981,5.52473188,2553.9,2553.8,3.91573]
[1726907556169,21.1668712,2553.9,2553.8,3.91573]
[1726907556362,18.77651075,2553.9,2553.8,3.91573]
[1726907556567,17.85,2553.9,2553.8,3.91573]
[1726907556875,18.77653959,2553.9,2553.8,3.91573]
[1726907557469,18.77653959,2553.9,2553.8,38.91573]
[1726907558612,17.85,2553.9,2553.8,38.91573]
[1726907559094,18.77677243,2553.9,2553.8,38.91573]
[1726907560082,17.85,2553.9,2553.8,38.91573]
[1726907560309,18.77689077,2553.9,2553.8,38.91573]
[1726907560804,17.85,2553.9,2553.8,38.91573]
[1726907561373,18.77694116,2553.9,2553.8,38.91573]
[1726907562113,0.92694116,2553.9,2553.8,38.91573]
[1726907563217,3.13617315,2553.9,2553.8,38.91573]
[1726907563815,0.92708121,2553.9,2553.8,38.91573]
[1726907564993,2.31872729,2553.9,2553.8,38.91573]
[1726907565291,0.92708121,2553.9,2553.8,38.91573]
[1726907565497,3.13740512,2553.9,2553.8,38.91573]
[1726907567928,3.13856169,2553.9,2553.8,38.91573]
[1726907570553,2.32009157,2553.9,2553.8,3.91573]
[1726907571305,3.54779675,2553.9,2553.8,3.91573]
[1726907571780,3.54940206,2553.9,2553.8,3.91573]
[1726907572828,3.54962701,2553.9,2553.8,3.91573]
[1726907573618,3.54962701,2553.9,2553.8,4.21573]
[1726907576319,4.51241379,2553.9,2553.8,4.21573]
[1726907577612,4.51242979,2553.9,2553.8,4.51573]
[1726907580259,3.54964301,2553.9,2553.8,4.51573]
[1726907581224,3.54974648,2553.9,2553.8,4.51573]
[1726907581661,3.54974648,2553.9,2553.8,4.81573]
[1726907585646,3.55101036,2553.9,2553.8,5.11573]
[1726907589823,3.55101036,2553.9,2553.8,5.41573]
[1726907590536,3.55258113,2553.9,2553.8,5.41573]
[1726907593169,4.1852042,2553.9,2553.8,5.41573]
[1726907593467,4.18526751,2553.9,2553.8,5.41573]
[1726907593638,4.18544589,2553.9,2553.8,5.41573]
[1726907594030,3.55351794,2553.9,2553.8,5.41573]
[1726907594229,4.18551225,2553.9,2553.8,5.41573]
[1726907595063,5.82122549,2553.9,2553.8,5.41573]
[1726907595367,5.82216025,2553.9,2553.8,5.41573]
[1726907596077,4.18646102,2553.9,2553.8,5.41573]
[1726907596566,5.82216025,2553.9,2553.8,5.41573]
[1726907598663,4.18646102,2553.9,2553.8,5.41573]
[1726907598873,5.82216025,2553.9,2553.8,5.41573]
[1726907600174,5.82331697,2553.9,2553.8,5.41573]
[1726907603284,4.18761774,2553.9,2553.8,5.41573]
[1726907603789,5.82331697,2553.9,2553.8,5.41573]
[1726907605110,5.82344526,2553.9,2553.8,5.41573]
[1726907608011,6.94834575,2553.9,2553.8,5.41573]
[1726907608222,9.14165242,2553.9,2553.8,5.41573]
[1726907609086,11.82701979,2553.9,2553.8,1.5]
[1726907609491,29.67701979,2553.9,2553.8,1.5]
[1726907609677,25.30099773,2553.9,2553.8,1.5]
[1726907609877,29.67552821,2553.9,2553.8,1.5]
[1726907610095,25.90514922,2553.9,2553.8,5.41573]
[1726907610298,27.95342749,2553.9,2553.8,5.41573]
[1726907611610,25.90514922,2553.9,2553.8,5.41573]
[1726907611933,27.54347118,2553.9,2553.8,5.41573]
[1726907612725,23.61394922,2553.9,2553.8,5.41573]
[1726907613035,24.70225964,2553.9,2553.8,5.41573]
[1726907613531,24.70282837,2553.9,2553.8,5.41573]
[1726907613731,24.70281405,2553.9,2553.8,5.41573]
[1726907615395,6.85281405,2553.9,2553.8,5.41573]
[1726907619033,6.95070925,2553.9,2553.8,5.41573]
[1726907619227,5.21450363,2553.9,2553.8,5.41573]
[1726907619436,7.81239079,2553.9,2553.8,5.41573]
[1726907620938,5.76450363,2553.9,2553.8,5.41573]
[1726907621144,7.81239079,2553.9,2553.8,5.41573]
[1726907621344,25.66239079,2553.9,2553.8,5.41573]
[1726907622148,23.61450363,2553.9,2553.8,5.41573]
[1726907622357,25.2524225,2553.9,2553.8,5.41573]
[1726907624140,25.2524225,2553.9,2553.8,1.5]
[1726907624340,28.10984819,2553.9,2553.8,1.5]
[1726907625942,28.10942166,2553.9,2553.8,1.5]
[1726907629131,28.10792501,2553.9,2553.8,1.5]
[1726907633956,28.10695462,2553.9,2553.8,1.5]
[1726907638650,28.10755563,2553.9,2553.8,1.5]
[1726907640160,28.10755563,2553.9,2553.8,0.3]
[1726907641222,23.73535747,2553.9,2553.8,0.3]
[1726907641424,28.1092532,2553.9,2553.8,0.3]
[1726907644044,25.6615532,2553.9,2553.8,0.3]
[1726907644381,25.6615532,2553.9,2553.8,0.6]
[1726907646933,25.66457174,2553.9,2553.8,0.6]
[1726907648240,25.66457174,2553.9,2553.8,0.9]
[1726907650082,23.61699214,2553.9,2553.8,0.9]
[1726907651673,21.28765747,2553.9,2553.8,0.9]
[1726907651854,23.61804533,2553.9,2553.8,0.9]
[1726907652060,25.6665437,2553.9,2553.8,0.9]
[1726907652252,25.6665437,2553.9,2553.8,1.2]
[1726907654795,23.61804533,2553.9,2553.8,1.2]
[1726907656346,27.53362533,2553.9,2553.8,1.5]
[1726907656550,34.8032703,2553.9,2553.8,1.5]
[1726907660674,27.53362533,2553.9,2553.8,1.5]
[1726907661199,27.5335699,2553.9,2553.8,1.5]
[1726907661964,29.86400659,2553.9,2553.8,1.5]
[1726907662165,29.86397093,2553.9,2553.8,1.5]
[1726907662799,27.5335699,2553.9,2553.8,1.5]
[1726907663366,28.86410402,2553.9,2553.8,1.5]
[1726907663566,26.5335699,2553.9,2553.8,1.5]
[1726907664019,28.86325028,2553.9,2553.8,1.5]
[1726907664215,26.5335699,2553.9,2553.8,1.5]
[1726907664772,28.85615675,2553.9,2553.8,1.5]
[1726907665293,26.5335699,2553.9,2553.8,1.5]
[1726907665670,28.85621646,2553.9,2553.8,1.5]
[1726907666008,24.20323747,2553.9,2553.8,1.5]
[1726907666217,31.30619549,2553.9,2553.8,1.5]
[1726907667522,26.5259242,2553.9,2553.8,1.5]
[1726907667704,28.84849767,2553.9,2553.8,1.5]
[1726907668632,31.30609385,2553.9,2553.8,1.5]
[1726907668912,28.84849767,2553.9,2553.8,1.5]
[1726907669413,31.30609385,2553.9,2553.8,1.5]
[1726907669620,27.39051385,2553.9,2553.8,1.5]
[1726907669773,24.9333624,2553.9,2553.8,1.5]
[1726907669977,21.58333704,2553.9,2553.8,1.5]
[1726907670604,21.58333704,2553.9,2553.8,3.22214026]
[1726907670915,21.58378968,2553.9,2553.8,3.22214026]
[1726907672894,21.58378968,2553.9,2553.8,1.5]
[1726907673081,25.49936968,2553.9,2553.8,1.5]
[1726907673281,28.99619243,2553.9,2553.8,1.5]
[1726907675397,28.99619243,2553.9,2553.8,3.22214026]
[1726907675822,28.99637779,2553.9,2553.8,3.22214026]
[1726907676127,28.99637779,2553.9,2553.8,1.5]
[1726907679937,25.08079779,2553.9,2553.8,1.5]
[1726907684138,21.58397504,2553.9,2553.8,1.5]
[1726907687625,21.58397504,2553.9,2553.8,3.22214026]
[1726907689562,23.6318691,2553.9,2553.8,3.22214026]
[1726907689726,21.58397504,2553.9,2553.8,3.22214026]
[1726907690127,23.63188833,2553.9,2553.8,3.22214026]
[1726907690338,23.63188105,2553.9,2553.8,3.22214026]
[1726907690563,23.63183857,2553.9,2553.8,3.22214026]
[1726907690862,23.63183378,2553.9,2553.8,3.22214026]
[1726907691161,21.58397504,2553.9,2553.8,3.22214026]
[1726907691662,23.63177009,2553.9,2553.8,3.22214026]
[1726907691866,23.63176627,2553.9,2553.8,3.22214026]
[1726907692172,21.58397504,2553.9,2553.8,3.22214026]
[1726907692464,23.63181643,2553.9,2553.8,3.22214026]
[1726907693371,21.58397504,2553.9,2553.8,3.22214026]
[1726907694625,21.58397504,2553.9,2553.8,1.5]
[1726907695358,21.58301792,2553.9,2553.8,1.5]
[1726907696027,23.63090879,2553.9,2553.8,1.5]
[1726907696457,21.58301792,2553.9,2553.8,1.5]
[1726907700149,21.58438992,2553.9,2553.8,1.5]
[1726907702261,23.63186156,2553.9,2553.8,1.5]
[1726907702464,23.08186156,2553.9,2553.8,10.41110129]
[1726907702651,3.14280534,2553.9,2553.8,10.41110129]
[1726907702974,0.92949584,2553.9,2553.8,13.41110129]
[1726907703146,0.81906573,2554.2,2554.0,2.3179]
[1726907703335,0.81906573,2554.2,2554.1,8.57865826]
[1726907703539,3.12483089,2554.2,2554.1,8.57865826]
[1726907703991,18.66906573,2554.4,2554.3,6.23286]
[1726907704292,18.66906573,2554.4,2554.1,0.623348]
[1726907704293,21.99936627,2554.4,2554.1,1.72214026]
[1726907704583,1.22730264,2554.2,2554.1,1.72214026]
[1726907704738,5.78576979,2554.2,2554.1,1.72214026]
[1726907705168,5.78576979,2554.2,2553.9,2.3179]
[1726907705169,6.33576979,2554.2,2553.9,2.3179]
[1726907705369,2.18640352,2554.2,2554.1,1.72214026]
[1726907705588,2.85412813,2554.2,2554.1,1.72214026]
[1726907705750,4.69743064,2554.2,2554.1,1.72214026]
[1726907705952,6.33383416,2554.2,2554.1,1.72214026]
[1726907706154,4.08115852,2554.2,2554.1,1.72214026]
[1726907706358,4.69726255,2554.2,2554.1,1.72214026]
[1726907706587,6.33366607,2554.2,2554.1,1.72214026]
[1726907707095,24.18366607,2554.2,2554.1,1.72214026]
[1726907707389,22.54726255,2554.2,2554.1,1.72214026]
[1726907708284,0.55,2554.1,2553.9,1.72214026]
[1726907708486,4.4880751,2554.0,2553.9,1.72214026]
[1726907708696,6.33120952,2554.0,2553.9,1.72214026]
[1726907710816,4.69618517,2554.0,2553.9,1.72214026]
[1726907711001,6.33120952,2554.0,2553.9,1.72214026]
[1726907711876,4.69618517,2554.0,2553.9,1.72214026]
[1726907712302,6.33120952,2554.0,2553.9,1.72214026]
[1726907712922,24.18102779,2554.0,2553.9,1.72214026]
[1726907714113,27.06584868,2554.0,2553.9,1.72214026]
[1726907714316,0.55,2553.9,2553.8,0.6]
[1726907714617,4.07914676,2553.9,2553.8,0.6]
[1726907714779,4.07914676,2553.9,2553.8,0.9]
[1726907714984,4.69478401,2553.9,2553.8,0.9]
[1726907716142,7.13618401,2553.9,2553.8,0.9]
[1726907716417,9.60763961,2553.9,2553.8,0.9]
[1726907716575,11.24266396,2553.9,2553.8,0.9]
[1726907717526,9.60763961,2553.9,2553.8,0.9]
[1726907717693,11.24251467,2553.9,2553.8,0.9]
[1726907718722,29.09251467,2553.9,2553.8,0.9]
[1726907719099,29.09251467,2553.9,2553.8,1.2]
[1726907722240,27.45749032,2553.9,2553.8,1.2]
[1726907723101,27.45749032,2553.9,2553.8,1.5]
[1726907724872,29.09262644,2553.9,2553.8,1.5]
[1726907726117,26.65122644,2553.9,2553.8,3.22214026]
[1726907727347,26.65102582,2553.9,2553.8,3.22214026]
[1726907728564,27.05980239,2553.9,2553.8,3.22214026]
[1726907728725,25.0158897,2553.9,2553.8,3.22214026]
[1726907729960,27.05980239,2553.9,2553.8,1.5]
[1726907730126,25.0158897,2553.9,2553.8,1.5]
[1726907730526,27.05980239,2553.9,2553.8,1.5]
[1726907731239,25.0158897,2553.9,2553.8,1.5]
[1726907732270,25.01751342,2553.9,2553.8,1.5]
[1726907732476,27.06157053,2553.9,2553.8,1.5]
[1726907733627,24.75735434,2553.9,2553.8,1.5]
[1726907733926,27.06235952,2553.9,2553.8,1.5]
[1726907737145,27.06193053,2553.9,2553.8,1.5]
[1726907737647,25.01812646,2553.9,2553.8,1.5]
[1726907738868,27.06193053,2553.9,2553.8,1.5]
[1726907739848,25.01812646,2553.9,2553.8,1.5]
[1726907740735,26.65306622,2553.9,2553.8,1.5]
[1726907740980,27.06193053,2553.9,2553.8,1.5]
[1726907741470,25.01812646,2553.9,2553.8,1.5]
[1726907741676,27.06193053,2553.9,2553.8,1.5]
[1726907741850,25.01812646,2553.9,2553.8,1.5]
[1726907742171,26.65305081,2553.9,2553.8,1.5]
[1726907742579,25.01812646,2553.9,2553.8,1.5]
[1726907742877,26.65303033,2553.9,2553.8,1.5]
[1726907743065,27.06193053,2553.9,2553.8,1.5]
[1726907743265,25.01812646,2553.9,2553.8,1.5]
[1726907743507,27.06193053,2553.9,2553.8,1.5]
[1726907743916,25.01812646,2553.9,2553.8,1.5]
[1726907745027,27.06193053,2553.9,2553.8,1.5]
[1726907745382,25.01812646,2553.9,2553.8,1.5]
[1726907745616,27.06193053,2553.9,2553.8,1.5]
[1726907746221,25.01812646,2553.9,2553.8,1.5]
[1726907747030,25.01084636,2553.9,2553.8,1.5]
[1726907747325,27.05443315,2553.9,2553.8,1.5]
[1726907748007,25.01084636,2553.9,2553.8,1.5]
[1726907749035,27.05443315,2553.9,2553.8,1.5]
[1726907749185,33.97001315,2553.9,2553.8,1.5]
[1726907749385,34.19212636,2553.9,2553.8,1.5]
[1726907750199,38.94303857,2553.9,2553.8,1.5]
[1726907750632,36.49073442,2553.9,2553.8,1.5]
[1726907751135,38.94303857,2553.9,2553.8,1.5]
[1726907751819,38.93913022,2553.9,2553.8,1.5]
[1726907755642,36.48537121,2553.9,2553.8,1.5]
[1726907755979,38.93982592,2553.9,2553.8,1.5]
[1726907756809,38.94029541,2553.9,2553.8,1.5]
[1726907757355,38.94020717,2553.9,2553.8,1.5]
[1726907757650,39.34903853,2553.9,2553.8,1.5]
[1726907757946,36.89476471,2553.9,2553.8,1.5]
[1726907758914,39.34901316,2553.9,2553.8,1.5]
[1726907759113,39.34892989,2553.9,2553.8,1.5]
[1726907759313,36.89476471,2553.9,2553.8,1.5]
[1726907760961,36.88801898,2553.9,2553.8,1.5]
[1726907764923,37.50178432,2553.9,2553.8,1.5]
[1726907769180,39.9557852,2553.9,2553.8,1.5]
[1726907769380,37.50178432,2553.9,2553.8,1.5]
[1726907769700,37.50278843,2553.9,2553.8,1.5]
[1726907770961,39.95665301,2553.9,2553.8,1.5]
[1726907771312,37.50278843,2553.9,2553.8,1.5]
[1726907771652,39.95661412,2553.9,2553.8,1.5]
[1726907771868,37.50278843,2553.9,2553.8,1.5]
[1726907773301,3.91604,2553.6,2553.5,0.3]
[1726907773459,10.7376367,2553.6,2553.5,0.3]
[1726907773655,10.63971769,2553.6,2553.5,2.6172]
[1726907774471,8.35275792,2553.6,2553.5,2.6172]
[1726907774672,10.63950957,2553.6,2553.5,2.6172]
[1726907774892,28.48950957,2553.6,2553.5,2.6172]
[1726907776693,26.44470664,2553.6,2553.5,2.6172]
[1726907777021,28.48986057,2553.6,2553.5,2.6172]
[1726907777429,24.57382057,2553.6,2553.5,2.6172]
[1726907777629,23.16503897,2553.6,2553.5,4.33934026]
[1726907777830,21.36402442,2553.6,2553.5,4.33934026]
[1726907778505,21.36402442,2553.6,2553.5,8.25553026]
[1726907779327,21.36119638,2553.6,2553.5,4.33934026]
[1726907782049,21.36119638,2553.6,2553.5,8.25553026]
[1726907782050,20.13392361,2553.6,2553.5,8.25553026]
[1726907782249,20.13392361,2553.6,2553.5,4.33934026]
[1726907782822,20.13392361,2553.6,2553.5,8.25553026]
[1726907783021,21.36135992,2553.6,2553.5,8.25553026]
[1726907783258,20.13392361,2553.6,2553.5,8.25553026]
[1726907783919,21.36135368,2553.6,2553.5,8.25553026]
[1726907784322,21.36168707,2553.6,2553.5,8.58765889]
[1726907784522,21.36168707,2553.6,2553.5,8.25553026]
[1726907785157,20.134257,2553.6,2553.5,8.25553026]
[1726907785334,21.77062933,2553.6,2553.5,8.25553026]
[1726907785754,21.77062933,2553.6,2553.5,8.55553026]
[1726907786147,20.134257,2553.6,2553.5,8.55553026]
[1726907786471,21.77062933,2553.6,2553.5,8.55553026]
[1726907786670,21.9623292,2553.6,2553.5,8.55553026]
[1726907787369,23.59870153,2553.6,2553.5,8.55553026]
[1726907787955,21.9623292,2553.6,2553.5,8.55553026]
[1726907788356,23.59870153,2553.6,2553.5,8.55553026]
[1726907789072,23.59989856,2553.6,2553.5,8.55553026]
[1726907789621,21.96352623,2553.6,2553.5,8.55553026]
[1726907789955,23.59989856,2553.6,2553.5,8.85553026]
[1726907790152,21.36341769,2553.6,2553.5,10.13271729]
[1726907790469,21.36341769,2553.6,2553.5,10.46491292]
[1726907790964,21.36341769,2553.6,2553.5,10.13271729]
[1726907791465,21.36341769,2553.6,2553.5,10.46490652]
[1726907793854,21.36370827,2553.6,2553.5,10.46490652]
[1726907794455,21.36370827,2553.6,2553.5,10.4649195]
[1726907795646,21.36370827,2553.6,2553.5,7.46559221]
[1726907795864,21.36370827,2553.6,2553.5,8.85553026]
[1726907796060,21.36370827,2553.6,2553.5,9.18771573]
[1726907797332,21.36370827,2553.6,2553.5,8.85553026]
[1726907797680,21.3637368,2553.6,2553.5,8.85553026]
[1726907798040,21.3637368,2553.6,2553.5,9.18770607]
[1726907798670,21.36215804,2553.6,2553.5,9.18770607]
[1726907800710,23.59892484,2553.6,2553.5,8.85553026]
[1726907800915,21.36228737,2553.6,2553.5,8.85553026]
[1726907801086,23.59902356,2553.6,2553.5,8.85553026]
[1726907801489,5.74902356,2553.6,2553.5,8.85553026]
[1726907801987,3.51239499,2553.6,2553.5,8.85553026]
[1726907803015,5.74939196,2553.6,2553.5,8.85553026]
[1726907803168,4.11301963,2553.6,2553.5,8.85553026]
[1726907803487,4.11491969,2553.6,2553.5,8.85553026]
[1726907803682,5.75129202,2553.6,2553.5,8.85553026]
[1726907803896,4.11491969,2553.6,2553.5,8.85553026]
[1726907804283,3.5144406,2553.6,2553.5,8.85553026]
[1726907804487,4.11494296,2553.6,2553.5,8.85553026]
[1726907804986,5.75131529,2553.6,2553.5,8.85553026]
[1726907806137,4.11494296,2553.6,2553.5,8.85553026]
[1726907806872,8.43816808,2553.6,2553.5,0.9]
[1726907807083,8.75113085,2553.6,2553.5,0.9]
[1726907807299,26.60113085,2553.6,2553.5,0.9]
[1726907808312,26.60098316,2553.6,2553.5,0.9]
[1726907808506,26.60098316,2553.6,2553.5,2.62214026]
[1726907809641,26.60098316,2553.6,2553.5,0.9]
[1726907809826,30.91334052,2553.6,2553.5,0.9]
[1726907813258,30.91108567,2553.6,2553.5,0.9]
[1726907813464,30.91108567,2553.6,2553.5,2.62214026]
[1726907813916,32.9576564,2553.6,2553.5,2.62214026]
[1726907814116,30.91108567,2553.6,2553.5,2.62214026]
[1726907817972,30.9106127,2553.6,2553.5,2.62214026]
[1726907821220,30.9066501,2553.6,2553.5,2.62214026]
[1726907827291,29.9066501,2553.6,2553.5,2.62214026]
[1726907827645,28.9066501,2553.6,2553.5,2.62214026]
[1726907828538,28.9066501,2553.6,2553.5,0.9]
[1726907830594,27.9066501,2553.6,2553.5,0.9]
[1726907830747,25.62736542,2553.6,2553.5,0.9]
[1726907830948,29.93506054,2553.6,2553.5,0.9]
[1726907832088,27.88957437,2553.6,2553.5,0.9]
[1726907835799,27.88191827,2553.6,2553.5,0.9]
[1726907839814,27.88191827,2553.6,2553.5,0.3]
[1726907840521,27.88193515,2553.6,2553.5,0.3]
[1726907840716,27.88193578,2553.6,2553.5,0.3]
[1726907841920,30.1365118,2553.6,2553.5,0.3]
[1726907842213,32.59114571,2553.6,2553.5,0.3]
[1726907843204,27.88193578,2553.6,2553.5,0.3]
[1726907844681,30.13686024,2553.6,2553.5,0.3]
[1726907845734,32.59279838,2553.6,2553.5,0.3]
[1726907850534,32.59479073,2553.6,2553.5,0.3]
[1726907850704,33.20861393,2553.6,2553.5,0.3]
[1726907852142,26.84907393,2553.6,2553.5,2.02214026]
[1726907852433,22.91297953,2553.6,2553.5,2.02214026]
[1726907852652,20.65604041,2553.6,2553.5,2.02214026]
[1726907853561,22.91307997,2553.6,2553.5,2.02214026]
[1726907853713,20.65604041,2553.6,2553.5,2.02214026]
[1726907854109,20.6570498,2553.6,2553.5,2.02214026]
[1726907855046,22.15552452,2553.6,2553.5,4.44664026]
[1726907855247,22.15592481,2553.6,2553.5,4.44664026]
[1726907858409,20.10748353,2553.6,2553.5,8.36283026]
[1726907859075,21.74558892,2553.6,2553.5,8.36283026]
[1726907860594,21.74558892,2553.6,2553.5,4.44664026]
[1726907860740,22.15592481,2553.6,2553.5,4.44664026]
[1726907861577,22.15592481,2553.6,2553.5,8.36283026]
[1726907861984,22.15592481,2553.6,2553.5,4.44664026]
[1726907862167,22.15592481,2553.6,2553.5,8.36283026]
[1726907862991,20.10748353,2553.6,2553.5,8.36283026]
[1726907863192,20.10748353,2553.6,2553.5,4.44664026]